bitfinex/quotes_SOLUSD_20251226
["timestamp","ask_amount","ask_price","bid_price","bid_amount"]
[1766778344023,0.76,122.41,122.38,8.17106359]
[1766778344220,0.76,122.41,122.39,0.72]
[1766778344437,0.76,122.41,122.39,15.66]
[1766778345148,0.76,122.41,122.39,14.94]
[1766778345344,4.5190513,122.41,122.39,14.94]
[1766778345546,3.8590513,122.41,122.39,15.51]
[1766778345951,0.1,122.41,122.39,15.51]
[1766778346253,0.66,122.41,122.39,15.51]
[1766778346440,0.66,122.41,122.39,14.79]
[1766778347135,0.1,122.42,122.39,22.9603299]
[1766778347349,0.1,122.42,122.4,0.72]
[1766778348049,15.1,122.46,122.39,22.9603299]
[1766778348252,0.66,122.45,122.41,0.72]
[1766778348451,0.66,122.45,122.42,15.66]
[1766778348663,4.5190513,122.46,122.43,14.94]
[1766778348869,0.76,122.46,122.43,15.66]
[1766778349364,0.1,122.46,122.44,4.4790513]
[1766778349659,0.76,122.46,122.44,3.7590513]
[1766778350167,0.1,122.46,122.44,3.7590513]
[1766778350361,0.1,122.46,122.44,4.4790513]
[1766778350762,0.1,122.46,122.45,0.72]
[1766778351657,0.1,122.46,122.44,0.72]
[1766778353565,0.1,122.46,122.45,14.94]
[1766778354163,3.8590513,122.46,122.44,14.94]
[1766778354472,3.7590513,122.45,122.44,15.66]
[1766778354770,3.7590513,122.45,122.41,0.72]
[1766778354960,3.8590513,122.46,122.43,0.72]
[1766778355163,0.1,122.46,122.42,19.4190513]
[1766778355350,0.1,122.46,122.43,3.7590513]
[1766778356266,0.1,122.46,122.43,4.4790513]
[1766778357169,0.1,122.46,122.43,0.72]
[1766778357968,3.8590513,122.46,122.43,0.72]
[1766778358165,0.1,122.46,122.43,0.72]
[1766778358476,3.8590513,122.46,122.43,0.72]
[1766778358677,0.1,122.46,122.43,0.72]
[1766778358862,0.1,122.46,122.43,15.64]
[1766778359063,0.1,122.46,122.42,11.92760956]
[1766778359261,0.1,122.46,122.43,14.92]
[1766778359461,0.1,122.46,122.43,15.64]
[1766778361270,0.1,122.46,122.43,27.56693608]
[1766778361474,0.1,122.46,122.44,3.7590513]
[1766778362364,0.1,122.46,122.43,26.84693608]
[1766778362568,0.1,122.46,122.44,0.72]
[1766778363855,0.1,122.46,122.45,0.72]
[1766778364048,15.1,122.5,122.45,0.72]
[1766778364049,0.1,122.49,122.45,0.72]
[1766778364453,0.1,122.49,122.46,19.3990513]
[1766778365069,0.2,122.5,122.47,0.72]
[1766778365669,0.2,122.5,122.47,4.4790513]
[1766778366064,0.1,122.5,122.47,4.4790513]
[1766778366272,0.1,122.5,122.47,0.72]
[1766778366653,15.0,122.54,122.5,0.72]
[1766778366859,15.1,122.54,122.5,15.64]
[1766778367057,0.1,122.53,122.5,15.64]
[1766778367473,0.1,122.5,122.46,0.72]
[1766778367679,3.8590513,122.5,122.47,0.72]
[1766778367868,3.7590513,122.49,122.47,0.72]
[1766778368573,3.8590513,122.51,122.47,0.72]
[1766778369289,0.1,122.51,122.47,0.72]
[1766778370466,18.8590513,122.52,122.47,0.72]
[1766778371080,0.1,122.51,122.47,0.72]
[1766778371974,0.1,122.51,122.47,8.88526412]
[1766778372174,0.1,122.51,122.47,0.72]
[1766778373263,3.7590513,122.51,122.47,0.72]
[1766778373864,15.1,122.52,122.48,0.72]
[1766778374076,0.1,122.52,122.49,15.63]
[1766778374395,0.1,122.52,122.49,18.6790513]
[1766778374687,0.1,122.52,122.5,3.7590513]
[1766778375070,3.7590513,122.54,122.5,3.7590513]
[1766778375265,0.1,122.53,122.49,27.55265099]
[1766778375676,0.1,122.53,122.5,0.71]
[1766778381399,3.7590513,122.54,122.5,0.71]
[1766778381598,3.8590513,122.54,122.5,0.71]
[1766778382092,3.8590513,122.54,122.47,61.3]
[1766778382093,3.8590513,122.51,122.47,61.3]
[1766778382294,3.8590513,122.51,122.48,15.63]
[1766778382599,3.7590513,122.5,122.48,15.63]
[1766778383293,0.1,122.51,122.48,15.63]
[1766778383493,3.8590513,122.52,122.48,15.63]
[1766778383990,2.50039336,122.52,122.48,15.63]
[1766778384795,2.40039336,122.51,122.49,0.71]
[1766778385597,2.40039336,122.51,122.48,15.63]
[1766778386279,2.40039336,122.5,122.48,15.63]
[1766778386480,2.40039336,122.5,122.45,0.71]
[1766778386683,2.40039336,122.48,122.46,0.71]
[1766778387003,15.1,122.51,122.45,14.92]
[1766778387004,2.40039336,122.47,122.45,14.92]
[1766778387201,2.40039336,122.46,122.45,14.92]
[1766778387497,2.40039336,122.47,122.45,14.92]
[1766778388277,3.10039336,122.47,122.45,14.92]
[1766778389978,0.7,122.47,122.45,14.92]
[1766778390179,3.10039336,122.47,122.45,14.92]
[1766778390997,2.40039336,122.47,122.45,14.92]
[1766778391193,0.7,122.45,122.41,0.71]
[1766778391393,2.40039336,122.44,122.41,0.71]
[1766778391602,2.40039336,122.43,122.41,0.71]
[1766778392498,2.40039336,122.43,122.4,15.63]
[1766778393011,3.10039336,122.43,122.4,15.63]
[1766778393394,2.40039336,122.42,122.4,15.63]
[1766778393600,2.40039336,122.42,122.4,0.71]
[1766778394613,2.40039336,122.42,122.38,14.92]
[1766778394915,3.10039336,122.42,122.38,15.63]
[1766778395495,3.10039336,122.42,122.39,0.71]
[1766778395702,0.7,122.42,122.39,0.71]
[1766778396117,3.10039336,122.42,122.39,0.71]
[1766778397088,3.10039336,122.42,122.38,15.63]
[1766778397286,0.7,122.41,122.38,15.63]
[1766778397499,2.40039336,122.42,122.39,0.71]
[1766778398121,3.10039336,122.42,122.39,0.71]
[1766778398422,3.10039336,122.42,122.37,15.63]
[1766778398423,0.7,122.41,122.37,15.63]
[1766778398995,0.7,122.41,122.38,0.71]
[1766778401317,3.10039336,122.42,122.38,0.71]
[1766778401619,3.10039336,122.42,122.38,8.88121646]
[1766778403503,0.7,122.42,122.38,8.17121646]
[1766778403706,0.7,122.42,122.39,0.71]
[1766778403912,3.10039336,122.42,122.39,0.71]
[1766778405419,0.72,122.41,122.37,23.76188294]
[1766778405616,3.12039336,122.41,122.38,0.67]
[1766778405812,2.40039336,122.41,122.38,0.67]
[1766778407022,3.12039336,122.41,122.38,0.67]
[1766778407318,3.12039336,122.4,122.37,15.59]
[1766778408318,3.12039336,122.41,122.38,0.67]
[1766778408519,0.72,122.41,122.38,0.67]
[1766778408706,3.12039336,122.41,122.38,0.67]
[1766778410430,0.72,122.41,122.38,0.67]
[1766778410728,0.72,122.41,122.37,15.59]
[1766778410928,0.72,122.41,122.37,0.67]
[1766778411115,3.12039336,122.41,122.37,15.61]
[1766778411316,3.12039336,122.41,122.37,14.94]
[1766778411518,11.28970898,122.41,122.38,0.67]
[1766778411718,8.89012423,122.4,122.37,0.67]
[1766778411923,3.12039336,122.4,122.37,0.67]
[1766778412721,3.12039336,122.39,122.36,0.67]
[1766778413030,2.40039336,122.38,122.36,0.67]
[1766778413407,2.40039336,122.39,122.36,0.67]
[1766778414028,3.12039336,122.38,122.35,14.94]
[1766778414202,3.12039336,122.38,122.35,15.61]
[1766778418035,2.40039336,122.39,122.35,14.94]
[1766778418229,0.72,122.38,122.35,23.78314686]
[1766778419329,3.12039336,122.39,122.36,0.67]
[1766778420037,3.12039336,122.37,122.35,14.94]
[1766778420233,2.40039336,122.37,122.35,15.61]
[1766778420543,3.12039336,122.38,122.35,15.61]
[1766778421126,0.72,122.37,122.34,0.67]
[1766778421822,0.72,122.39,122.35,2.40039336]
[1766778422623,0.72,122.39,122.36,14.94]
[1766778422824,0.72,122.39,122.36,15.61]
[1766778424129,0.72,122.39,122.36,23.78254323]
[1766778424743,3.12039336,122.41,122.37,0.67]
[1766778425850,0.72,122.41,122.37,0.67]
[1766778426546,0.72,122.46,122.41,0.67]
[1766778426730,15.0,122.47,122.41,14.94]
[1766778426731,2.40039336,122.44,122.41,14.94]
[1766778427047,0.72,122.43,122.41,14.94]
[1766778427628,2.40039336,122.45,122.41,14.94]
[1766778427950,0.72,122.44,122.41,14.94]
[1766778428840,0.72,122.44,122.41,17.34039336]
[1766778429149,0.72,122.44,122.41,2.40039336]
[1766778430149,0.72,122.44,122.41,3.07039336]
[1766778437557,0.72,122.44,122.41,0.67]
[1766778439255,0.72,122.44,122.4,2.40039336]
[1766778439448,0.69,122.43,122.39,18.02039336]
[1766778439848,0.69,122.43,122.4,0.68]
[1766778440047,3.09039336,122.44,122.4,0.68]
[1766778442437,2.40039336,122.44,122.4,0.68]
[1766778444061,3.7548882,122.44,122.4,0.68]
[1766778444263,4.4448882,122.44,122.4,0.68]
[1766778444763,3.7548882,122.44,122.4,0.68]
[1766778444938,0.69,122.43,122.4,0.68]
[1766778446963,3.7548882,122.44,122.4,0.68]
[1766778447165,0.69,122.44,122.4,0.68]
[1766778447647,0.69,122.44,122.4,3.7548882]
[1766778448359,0.69,122.44,122.4,4.4348882]
[1766778448837,0.69,122.44,122.4,0.68]
[1766778449038,0.69,122.44,122.37,0.68]
[1766778449039,4.4448882,122.41,122.37,0.68]
[1766778449463,3.7548882,122.41,122.37,0.68]
[1766778449764,3.7548882,122.4,122.37,0.68]
[1766778449978,4.4448882,122.4,122.37,0.68]
[1766778450168,3.7548882,122.39,122.37,0.68]
[1766778453277,3.7548882,122.38,122.34,0.68]
[1766778453449,3.7548882,122.37,122.34,0.68]
[1766778453864,3.7548882,122.38,122.34,0.68]
[1766778454454,0.69,122.38,122.34,0.68]
[1766778455875,4.4448882,122.38,122.34,0.68]
[1766778456073,3.7548882,122.37,122.34,0.68]
[1766778456253,4.4448882,122.37,122.34,0.68]
[1766778456578,0.69,122.37,122.34,0.68]
[1766778456952,0.69,122.37,122.33,0.68]
[1766778457279,0.69,122.36,122.33,0.68]
[1766778457652,4.4448882,122.37,122.33,0.68]
[1766778460978,3.7548882,122.36,122.33,0.68]
[1766778461171,0.69,122.37,122.33,0.68]
[1766778461389,4.4448882,122.37,122.33,0.68]
[1766778462791,0.69,122.36,122.32,14.94]
[1766778462990,0.69,122.36,122.32,15.62]
[1766778463378,0.69,122.36,122.32,23.11508274]
[1766778463587,0.69,122.36,122.33,0.68]
[1766778469517,0.66,122.37,122.33,0.68]
[1766778470389,0.66,122.37,122.33,4.4348882]
[1766778470787,0.66,122.37,122.33,0.68]
[1766778474396,4.4148882,122.38,122.33,0.68]
[1766778474717,0.66,122.37,122.33,0.68]
[1766778484723,0.66,122.37,122.34,0.72]
[1766778484912,0.66,122.37,122.33,12.64908225]
[1766778485728,0.66,122.37,122.33,11.92908225]
[1766778485901,0.66,122.37,122.34,0.72]
[1766778487019,3.7548882,122.38,122.34,0.72]
[1766778487211,4.4148882,122.38,122.34,0.72]
[1766778488022,3.7548882,122.38,122.34,0.72]
[1766778488210,0.66,122.37,122.34,0.72]
[1766778488407,0.66,122.36,122.32,23.1149881]
[1766778488611,4.4148882,122.37,122.33,0.72]
[1766778489622,3.7548882,122.37,122.33,0.72]
[1766778489930,0.66,122.36,122.33,0.72]
[1766778490729,4.4148882,122.37,122.33,0.72]
[1766778491523,0.66,122.37,122.33,0.72]
[1766778491735,0.66,122.37,122.34,0.72]
[1766778492721,4.4148882,122.38,122.34,0.72]
[1766778493129,0.66,122.38,122.34,0.72]
[1766778493331,0.66,122.38,122.35,0.72]
[1766778497519,4.4148882,122.38,122.35,0.72]
[1766778498437,0.66,122.39,122.35,0.72]
[1766778500315,0.66,122.39,122.35,8.17325827]
[1766778500517,0.66,122.39,122.36,0.72]
[1766778500716,0.66,122.41,122.38,0.72]
[1766778500920,0.66,122.41,122.37,0.72]
[1766778501129,4.4148882,122.41,122.37,0.72]
[1766778501333,3.7548882,122.41,122.37,0.72]
[1766778501541,0.66,122.4,122.37,0.72]
[1766778501924,4.4148882,122.41,122.37,0.72]
[1766778503760,0.66,122.4,122.37,0.72]
[1766778506143,0.66,122.4,122.37,2.40419271]
[1766778506316,0.66,122.4,122.38,0.72]
[1766778506523,10.57283225,122.42,122.38,0.72]
[1766778506845,0.66,122.41,122.38,0.72]
[1766778507047,3.06419271,122.41,122.38,0.72]
[1766778507733,0.66,122.4,122.38,0.72]
[1766778509526,0.66,122.38,122.31,68.82783601]
[1766778509725,2.40419271,122.39,122.33,0.72]
[1766778509726,2.40419271,122.36,122.33,0.72]
[1766778512155,3.06419271,122.36,122.33,0.72]
[1766778512529,0.66,122.36,122.33,0.72]
[1766778513042,2.40419271,122.37,122.33,0.72]
[1766778513243,3.06419271,122.37,122.33,0.72]
[1766778516258,2.40419271,122.37,122.33,0.72]
[1766778516553,0.66,122.36,122.33,0.72]
[1766778517139,3.06419271,122.37,122.33,0.72]
[1766778519355,0.66,122.36,122.33,0.72]
[1766778519944,3.06419271,122.37,122.33,0.72]
[1766778520453,0.66,122.37,122.33,0.72]
[1766778520643,3.06419271,122.36,122.33,0.72]
[1766778521643,0.66,122.36,122.33,0.72]
[1766778524658,3.08419271,122.37,122.33,0.72]
[1766778527559,2.40419271,122.37,122.33,0.72]
[1766778527753,3.08419271,122.37,122.33,0.72]
[1766778529562,0.68,122.37,122.33,0.72]
[1766778529865,3.08419271,122.37,122.33,0.72]
[1766778531665,0.72,122.36,122.33,0.72]
[1766778533369,0.72,122.37,122.33,0.72]
[1766778535945,2.40419271,122.37,122.33,0.72]
[1766778536147,0.72,122.36,122.33,0.72]
[1766778536667,3.12419271,122.37,122.33,0.72]
[1766778536866,2.40419271,122.37,122.33,0.72]
[1766778537572,2.40419271,122.36,122.33,0.72]
[1766778537766,3.12419271,122.36,122.33,0.72]
[1766778538972,0.72,122.35,122.33,0.72]
[1766778539469,2.40419271,122.36,122.33,0.68]
[1766778539650,3.12419271,122.36,122.33,0.68]
[1766778540657,2.40419271,122.36,122.33,0.68]
[1766778541572,15.72,122.37,122.33,0.68]
[1766778541768,3.12419271,122.38,122.34,0.68]
[1766778541975,2.40419271,122.38,122.34,0.68]
[1766778542176,0.72,122.37,122.34,0.68]
[1766778542676,2.40419271,122.38,122.34,0.68]
[1766778543054,2.40419271,122.39,122.35,0.68]
[1766778543263,15.72,122.4,122.36,0.68]
[1766778543570,0.72,122.4,122.36,3.08419271]
[1766778543776,0.72,122.4,122.36,2.40419271]
[1766778544561,25.51346239,122.41,122.37,0.68]
[1766778544762,2.40419271,122.4,122.37,0.68]
[1766778544965,2.40419271,122.39,122.37,0.68]
[1766778545965,0.72,122.38,122.35,15.62]
[1766778547384,0.72,122.38,122.35,14.94]
[1766778547595,0.72,122.38,122.36,0.68]
[1766778552873,3.12419271,122.38,122.36,0.68]
[1766778553070,2.40419271,122.38,122.36,0.68]
[1766778553275,3.12419271,122.39,122.36,0.68]
[1766778553865,2.40419271,122.39,122.35,14.94]
[1766778554065,0.72,122.38,122.35,14.94]
[1766778555467,0.72,122.38,122.35,15.63]
[1766778555968,0.68,122.36,122.33,15.63]
[1766778558277,0.68,122.36,122.33,14.94]
[1766778558684,0.68,122.36,122.33,15.63]
[1766778559394,0.68,122.36,122.33,14.94]
[1766778560394,3.08419271,122.36,122.33,14.94]
[1766778560597,0.68,122.35,122.33,14.94]
[1766778561695,3.08419271,122.36,122.33,15.63]
[1766778562676,0.68,122.35,122.33,14.94]
[1766778564401,0.68,122.35,122.32,0.69]
[1766778566297,0.68,122.33,122.31,14.94]
[1766778566503,0.68,122.33,122.3,0.69]
[1766778568895,4.44029984,122.33,122.3,0.69]
[1766778569297,3.76029984,122.33,122.3,0.69]
[1766778569904,4.44029984,122.33,122.3,0.69]
[1766778570122,3.76029984,122.33,122.3,0.69]
[1766778570284,0.68,122.32,122.3,0.69]
[1766778570701,3.76029984,122.33,122.3,0.69]
[1766778570881,4.44029984,122.33,122.3,0.69]
[1766778571599,4.44029984,122.33,122.32,0.78130187]
[1766778572592,0.68,122.33,122.32,0.78130187]
[1766778572794,4.44029984,122.33,122.32,0.78130187]
[1766778573200,0.68,122.33,122.32,0.78130187]
[1766778573505,4.44029984,122.34,122.32,0.78130187]
[1766778573693,0.68,122.33,122.32,0.78130187]
[1766778574413,11.93456251,122.34,122.32,0.78130187]
[1766778574618,12.61456251,122.34,122.32,0.78130187]
[1766778574919,28.60911635,122.34,122.29,0.2]
[1766778575126,4.44029984,122.33,122.3,0.69]
[1766778577612,4.44029984,122.32,122.29,0.89]
[1766778577929,3.76029984,122.3,122.28,0.89]
[1766778578116,3.76029984,122.3,122.29,0.69]
[1766778578311,3.76029984,122.3,122.28,0.2]
[1766778578513,8.1764082,122.31,122.28,0.2]
[1766778578514,3.76029984,122.29,122.28,0.2]
[1766778580204,0.68,122.3,122.28,0.2]
[1766778581327,3.76029984,122.3,122.29,0.69]
[1766778582111,4.44029984,122.31,122.28,0.89]
[1766778582308,3.76029984,122.31,122.28,0.89]
[1766778582519,0.68,122.3,122.28,0.89]
[1766778584442,4.44029984,122.3,122.28,0.2]
[1766778584946,4.44029984,122.3,122.28,0.92]
[1766778585449,4.44029984,122.3,122.28,0.2]
[1766778586019,0.68,122.3,122.28,0.92]
[1766778588326,0.68,122.3,122.28,0.2]
[1766778589345,0.68,122.3,122.28,0.92]
[1766778589946,4.47029984,122.31,122.28,0.92]
[1766778590141,4.47029984,122.31,122.29,0.72]
[1766778590972,4.47029984,122.31,122.28,0.2]
[1766778591172,4.47029984,122.31,122.28,0.92]
[1766778592152,4.47029984,122.3,122.28,0.2]
[1766778594556,4.47029984,122.3,122.28,0.92]
[1766778595067,0.71,122.3,122.28,0.2]
[1766778595989,4.47029984,122.31,122.28,0.92]
[1766778596891,4.47029984,122.31,122.29,0.72]
[1766778597863,4.47029984,122.31,122.28,0.92]
[1766778600284,0.71,122.31,122.28,0.2]
[1766778600581,0.71,122.3,122.28,0.92]
[1766778600767,0.71,122.3,122.28,0.2]
[1766778601287,18.76029984,122.32,122.28,0.2]
[1766778601482,0.71,122.31,122.29,0.72]
[1766778601800,0.71,122.31,122.28,0.92]
[1766778603974,0.71,122.33,122.3,0.72]
[1766778604297,4.47029984,122.33,122.29,0.72]
[1766778605081,3.76029984,122.33,122.29,0.72]
[1766778605691,0.71,122.33,122.29,0.72]
[1766778605888,0.71,122.33,122.3,0.72]
[1766778609499,3.76029984,122.34,122.3,0.72]
[1766778610383,0.71,122.33,122.3,0.72]
[1766778620716,0.71,122.33,122.29,11.93750344]
[1766778621017,0.71,122.33,122.29,12.64750344]
[1766778621615,0.71,122.33,122.29,11.93750344]
[1766778621919,0.71,122.34,122.3,0.71]
[1766778622705,0.71,122.34,122.3,11.93682683]
[1766778622997,35.42897948,122.38,122.33,0.71]
[1766778622998,0.71,122.35,122.33,0.71]
[1766778623592,0.71,122.37,122.33,0.71]
[1766778624109,4.47029984,122.37,122.33,0.71]
[1766778625009,3.76029984,122.37,122.33,0.71]
[1766778625309,0.71,122.36,122.33,0.71]
[1766778642220,0.71,122.36,122.32,17.34589295]
[1766778642410,0.71,122.36,122.33,0.71]
[1766778645426,0.71,122.36,122.32,14.94]
[1766778645636,0.71,122.36,122.32,15.62]
[1766778646335,0.71,122.36,122.32,18.02589295]
[1766778646534,0.71,122.36,122.32,25.52109889]
[1766778647507,0.71,122.36,122.33,0.68]
[1766778650532,0.71,122.36,122.32,25.52109889]
[1766778650739,0.71,122.36,122.32,26.20109889]
[1766778651127,0.71,122.36,122.33,0.68]
[1766778654938,0.71,122.36,122.32,14.94]
[1766778655139,0.66,122.35,122.33,0.68]
[1766778655637,3.06589295,122.35,122.31,0.68]
[1766778655938,17.40589295,122.36,122.31,0.68]
[1766778656139,0.66,122.35,122.31,0.68]
[1766778656739,0.66,122.35,122.3,26.20248439]
[1766778657232,0.66,122.35,122.32,0.68]
[1766778658936,0.66,122.35,122.31,10.5817631]
[1766778659132,0.66,122.35,122.31,11.2617631]
[1766778659947,0.66,122.35,122.32,0.68]
[1766778662118,0.66,122.35,122.33,0.68]
[1766778662627,0.66,122.35,122.32,3.08589295]
[1766778663242,0.66,122.35,122.33,0.68]
[1766778663539,0.66,122.36,122.33,0.68]
[1766778663847,0.66,122.36,122.34,0.68]
[1766778667830,0.66,122.37,122.34,0.68]
[1766778669837,129.0774512,122.38,122.34,0.68]
[1766778670451,2.40589295,122.37,122.34,0.68]
[1766778671246,3.06589295,122.37,122.34,0.68]
[1766778673232,0.66,122.39,122.35,2.40589295]
[1766778673451,0.66,122.4,122.37,0.68]
[1766778674359,0.66,122.37,122.35,14.94]
[1766778674563,3.06589295,122.37,122.35,14.94]
[1766778674941,2.40589295,122.37,122.35,15.62]
[1766778675847,3.06589295,122.37,122.35,15.62]
[1766778676450,3.06589295,122.37,122.35,14.94]
[1766778676648,3.06589295,122.37,122.35,15.62]
[1766778677458,3.06589295,122.37,122.35,14.94]
[1766778679863,2.40589295,122.37,122.35,14.94]
[1766778680065,0.66,122.36,122.35,14.94]
[1766778680467,0.66,122.36,122.34,0.68]
[1766778680662,0.66,122.36,122.35,14.94]
[1766778680843,0.66,122.37,122.35,15.62]
[1766778681044,3.06589295,122.37,122.35,15.62]
[1766778681353,2.40589295,122.37,122.35,15.62]
[1766778681853,3.06589295,122.37,122.35,15.62]
[1766778682159,3.06589295,122.37,122.35,14.94]
[1766778683056,0.66,122.37,122.35,14.94]
[1766778683369,0.66,122.37,122.35,15.62]
[1766778684065,0.66,122.37,122.35,14.94]
[1766778684461,0.66,122.37,122.34,0.68]
[1766778685549,3.06589295,122.38,122.34,0.68]
[1766778685950,3.75926897,122.37,122.34,0.68]
[1766778686159,3.75926897,122.35,122.34,15.62]
[1766778686354,3.75926897,122.36,122.35,0.68]
[1766778686675,4.41926897,122.36,122.34,15.62]
[1766778686869,3.75926897,122.36,122.34,15.62]
[1766778687061,3.75926897,122.36,122.34,14.94]
[1766778687261,0.66,122.35,122.34,14.94]
[1766778689265,0.66,122.36,122.32,14.94]
[1766778689473,0.66,122.34,122.32,15.62]
[1766778689674,3.75926897,122.35,122.32,15.62]
[1766778689865,4.41926897,122.35,122.32,15.62]
[1766778690255,0.66,122.34,122.32,14.94]
[1766778690458,0.66,122.34,122.32,15.62]
[1766778692169,4.41926897,122.35,122.32,0.68]
[1766778692482,4.41926897,122.35,122.32,15.62]
[1766778692959,3.75926897,122.35,122.32,15.62]
[1766778693158,0.66,122.34,122.32,14.94]
[1766778694789,0.66,122.34,122.32,15.62]
[1766778695985,19.41926897,122.36,122.33,0.68]
[1766778696191,0.66,122.35,122.33,0.68]
[1766778696778,0.66,122.36,122.33,0.68]
[1766778696984,4.41926897,122.37,122.33,0.68]
[1766778697883,0.66,122.36,122.33,0.68]
[1766778698273,0.66,122.35,122.33,15.62]
[1766778699692,0.66,122.35,122.33,14.94]
[1766778700184,0.66,122.35,122.33,15.62]
[1766778700980,3.75926897,122.37,122.33,15.62]
[1766778701183,4.41926897,122.37,122.34,0.68]
[1766778701975,0.66,122.36,122.34,0.68]
[1766778702182,0.66,122.36,122.33,14.94]
[1766778702495,0.66,122.36,122.33,15.62]
[1766778702996,0.66,122.36,122.33,14.94]
[1766778703185,0.66,122.36,122.34,0.68]
[1766778703574,0.66,122.36,122.33,14.94]
[1766778703898,0.66,122.36,122.33,15.62]
[1766778704573,3.75926897,122.37,122.34,0.69]
[1766778704875,4.45926897,122.37,122.34,0.69]
[1766778705092,0.7,122.36,122.34,0.69]
[1766778707101,0.7,122.36,122.33,14.94]
[1766778707289,0.7,122.36,122.33,15.63]
[1766778707888,0.7,122.35,122.33,15.63]
[1766778708110,4.45926897,122.36,122.34,0.69]
[1766778708400,3.75926897,122.36,122.34,0.69]
[1766778709111,4.45926897,122.35,122.33,14.94]
[1766778709278,0.7,122.34,122.33,14.94]
[1766778709892,3.75926897,122.35,122.33,14.94]
[1766778710093,4.45926897,122.35,122.33,14.94]
[1766778710902,3.75926897,122.35,122.33,14.94]
[1766778711086,0.7,122.34,122.33,14.94]
[1766778713309,0.7,122.35,122.32,0.69]
[1766778713517,4.45926897,122.35,122.33,0.69]
[1766778713683,3.75926897,122.35,122.33,0.69]
[1766778714492,0.7,122.34,122.32,14.94]
[1766778715112,0.7,122.34,122.32,15.63]
[1766778715484,0.7,122.34,122.32,0.69]
[1766778715685,11.93281842,122.35,122.32,0.69]
[1766778715886,12.63281842,122.35,122.32,0.69]
[1766778716318,11.93281842,122.35,122.32,0.69]
[1766778716526,0.7,122.34,122.32,0.69]
[1766778716810,0.7,122.34,122.31,14.94]
[1766778717385,0.7,122.34,122.31,15.63]
[1766778722207,0.7,122.33,122.31,14.94]
[1766778723110,3.75926897,122.33,122.3,0.69]
[1766778723283,0.7,122.3,122.28,0.2]
[1766778723487,4.45926897,122.3,122.28,0.89]
[1766778724308,4.45926897,122.29,122.26,0.69]
[1766778726302,0.7,122.29,122.26,0.69]
[1766778726507,0.7,122.29,122.26,11.93854361]
[1766778727202,0.7,122.29,122.26,8.86927464]
[1766778727398,18.75926897,122.31,122.26,11.93854361]
[1766778727606,18.75926897,122.31,122.27,0.69]
[1766778727802,19.45926897,122.31,122.26,3.75926897]
[1766778728183,0.7,122.3,122.26,3.75926897]
[1766778728586,4.45926897,122.3,122.25,0.2]
[1766778728785,4.45926897,122.3,122.25,3.95926897]
[1766778729800,3.75926897,122.3,122.26,0.69]
[1766778729990,0.7,122.29,122.26,0.69]